[Event "Summer Prague Open-A 2022"]
[Site "Prague"]
[Date "2022.08.11"]
[Round "8.9"]
[White "Kambrath, Yannick"]
[Black "Dauth, Benjamin"]
[Result "1/2-1/2"]
[ECO "A41"]
[WhiteElo "2401"]
[BlackElo "2243"]
[Annotator "TA"]
[PlyCount "91"]
[EventDate "2022.08.05"]
[EventType "swiss"]
[EventCountry "CZE"]
[SourceTitle "playchess.com"]
[Source "ChessBase"]
[SourceQuality "1"]
[TimeControl "40/5400+30:1800+30"]

{[%evp 9,91,58,104,80,82,42,50,48,108,90,149,151,200,161,205,152,184,208,165,150,168,129,114,112,111,111,114,104,139,136,129,139,125,138,106,97,133,110,132,97,92,100,110,101,101,71,131,36,69,54,69,83,29,8,22,8,8,8,10,8,8,0,0,0,0,0,0,0,0,0,0,0,0,-8,-8,-8,-8,-8,0,0,0,0,0,0]} 1. d4 {[%emt 0:04:56][%cal Bd2d4,Bd4d5][%mdl 32]} d6 {[%emt 0:00:42]} 2. Nf3 {[%emt 0:00:23]} Nc6 {[%emt 0:01:38]} 3. c4 {[%emt 0:06:25]} Bg4 {[%emt 0:01:10]} 4. Nc3 {[%emt 0:01:02]} e5 {[%emt 0:00:20]} 5. d5 {[%emt 0:00:21]} Bxf3 {[%emt 0:00:31]} (5... Nce7 $14 {should be considered.}) 6. exf3 {[%emt 0:00:05][%cal Be2f3,Bf3f4][%mdl 32] A41: 1 d4 d6: Tartakower System and Modern Defence.} Nd4 {[%emt 0:00:20]} 7. g3 {[%emt 0:01:36]} g6 {[%emt 0:00:50]} 8. Bg2 {[%emt 0:00:40] [#] White is slightly better.} Bh6 $146 {[%emt 0:01:13]} (8... Bg7 $14) ({Predecessor:} 8... Bg7 9. O-O Ne7 10. f4 O-O 11. Qd3 f5 12. Be3 e4 13. Qd2 c5 14. dxc6 Nexc6 {1-0 (39) Silva,L (2353)-Martins,D (2402) Braga 2018}) 9. f4 $16 {[%emt 0:02:22]} f6 {[%emt 0:08:46]} (9... Bg7 $142) 10. O-O {[%emt 0:01:46]} Nf5 {[%emt 0:06:19]} (10... Bg7 $16 {keeps fighting.} 11. Be3 Nf5 12. fxe5 fxe5) 11. fxe5 {[%emt 0:13:03]} Bxc1 {[%emt 0:01:17]} 12. Qxc1 {[%emt 0:00:14] [#] And now exd6 would win.} dxe5 {[%emt 0:01:51]} 13. f4 {[%emt 0:07:03]} Qe7 {[%emt 0:00:32]} 14. fxe5 {[%emt 0:02:50]} fxe5 {[%emt 0:00:44]} 15. Ne4 {[%emt 0:02:37][%cal Bc3e4,Be4c5,Bc5d7][%mdl 32] Hoping for c5.} Ngh6 {[%emt 0:00:15]} 16. Bh3 {[%emt 0:12:34][%cal Od5d6]} O-O {[%emt 0:02:24]} 17. Qg5 {[%emt 0:06:13] Bxf5 is the strong threat.} Rae8 {[%emt 0:22:14]} 18. Rae1 {[%emt 0:02:58] White is more active.} Kg7 {[%emt 0:00:59]} 19. Qxe7+ {[%emt 0:05:16]} Rxe7 {[%emt 0:00:17]} 20. Nc5 {[%emt 0:01:12] aiming for Ne6+.} Nd4 {[%emt 0:01:18]} 21. Rxf8 {[%emt 0:00:32]} Kxf8 {[%emt 0:00:05]} 22. Kg2 {[%emt 0:01:03] Against Nf3} Nhf5 {[%emt 0:03:41]} 23. Bxf5 {[%emt 0:08:58]} gxf5 {[%emt 0:00:18] [#]} 24. Rxe5 $3 {[%emt 0:03:48][%mdl 512]} Rxe5 {[%emt 0:02:31]} 25. Nd7+ {[%emt 0:00:01]} Ke7 {[%emt 0:00:08]} 26. Nxe5 {[%emt 0:00:01][%mdl 4096] Endgame KN-KN} Kd6 {[%emt 0:00:11]} 27. Nf3 {[%emt 0:05:17]} Kc5 {[%emt 0:05:46]} (27... Nc2 $142) 28. Nd2 {[%emt 0:03:26]} ({White should try} 28. Nxd4 $16 Kxd4 29. b3) 28... b5 {[%emt 0:00:15]} 29. cxb5 {[%emt 0:00:05]} Nxb5 {[%emt 0:01:40]} 30. Kf3 {[%emt 0:00:09]} Kxd5 {[%emt 0:00:05]} 31. Ke3 {[%emt 0:00:41]} Nd6 {[%emt 0:00:39] The position is equal.} 32. Kd3 {[%emt 0:01:04]} c5 {[%emt 0:01:02]} 33. b3 {[%emt 0:04:26]} Ke6 {[%emt 0:00:08]} 34. Nc4 {[%emt 0:01:10]} Ne4 {[%emt 0:00:06]} 35. Ke3 {[%emt 0:01:16]} Nc3 {[%emt 0:01:28]} 36. a3 {[%emt 0:00:17]} Nb5 {[%emt 0:01:15]} 37. Kd3 {[%emt 0:00:32]} Nd4 {[%emt 0:02:51]} 38. b4 {[%emt 0:00:59]} Nf3 $1 {[%emt 0:00:08]} 39. h3 cxb4 {[%emt 0:01:06]} 40. axb4 {[%emt 0:01:22]} Ng5 {[%emt 0:00:39]} 41. b5 {[%emt 0:14:07]} Nxh3 {[%emt 0:02:03] Threatening ...f4.} 42. b6 {[%emt 0:01:25]} axb6 {[%emt 0:02:16]} 43. Nxb6 {[%emt 0:00:02]} h5 {[%emt 0:00:19]} 44. Ke3 {[%emt 0:00:06]} Ng5 {[%emt 0:00:10]} 45. Kf4 {[%emt 0:00:46]} Ne4 {[%emt 0:00:07]} 46. Nc4 {[%emt 0:00:28] Black defended with fortune.  Weighted Error Value: White=0.12 (very precise) /Black=0.10 (very precise)} 1/2-1/2

[Event "Summer Prague Open-A 2022"]
[Site "Prague"]
[Date "2022.08.11"]
[Round "8.10"]
[White "Polster, Christian"]
[Black "Ranaldi, Lucas"]
[Result "0-1"]
[ECO "B11"]
[WhiteElo "2236"]
[BlackElo "2339"]
[Annotator "TA"]
[PlyCount "76"]
[EventDate "2022.08.05"]
[EventType "swiss"]
[EventCountry "CZE"]
[SourceTitle "playchess.com"]
[Source "ChessBase"]
[SourceQuality "1"]
[TimeControl "40/5400+30:1800+30"]

{[%evp 10,75,23,20,22,-33,-27,-35,0,-15,-2,-40,-29,-50,-6,-44,-47,-51,-43,-49,-49,-47,-42,-67,-27,-40,-45,-61,-50,-66,-64,-74,-89,-84,-74,-143,-75,-101,-101,-101,-102,-98,-109,-115,-102,-246,-244,-303,-293,-293,-279,-304,-308,-565,-548,-670,-660,-783,-739,-819,-816,-1114,-1072,-29987,-29988,-29997,-29998,-29999]} 1. e4 {[%emt 0:00:03]} c6 {[%emt 0:00:16]} 2. Nc3 {[%emt 0:00:07]} d5 {[%emt 0:00:08]} 3. Nf3 {[%emt 0:00:04]} Bg4 {[%emt 0:00:08]} 4. h3 {[%emt 0:00:21]} Bxf3 {[%emt 0:00:17]} 5. Qxf3 {[%emt 0:00:07]} Nf6 {[%emt 0:00:46]} 6. d4 {[%emt 0:00:38]} dxe4 {[%emt 0:02:31] B11: Caro-Kann: Two Knights Variation.} 7. Nxe4 {[%emt 0:00:56]} (7. Qe3 $11) 7... Qxd4 $15 {[%emt 0:00:38]} 8. Bd3 {[%emt 0:00:14]} Nbd7 {[%emt 0:01:12][%cal Bb8d7,Bd7f6,Bf6d5][%mdl 32] Black is slightly better.} 9. Be3 {[%emt 0:02:37]} Qd5 {[%emt 0:01:26]} 10. Rd1 {[%emt 0:04:22] [#]} (10. O-O $5 {[%cal Rf1d1]}) 10... g6 $146 {[%emt 0:00:49]} ({Predecessor:} 10... e6 11. O-O Be7 12. Nxf6+ Bxf6 13. Be4 Qb5 14. b3 Ne5 15. Qh5 g6 16. Qh6 Qb4 {1-0 (29) Mamedov,R (2561)-Alavi Moghaddam,S (2314) Abu Dhabi 2006}) 11. O-O {[%emt 0:05:50]} Bg7 $1 {[%emt 0:00:15]} 12. Nxf6+ {[%emt 0:02:59]} Nxf6 {[%emt 0:06:17]} 13. Qg3 {[%emt 0:04:57][%cal Od3g6] [#] Hoping for Bxg6!} Qxa2 {[%emt 0:20:02]} 14. Qc7 {[%emt 0:11:47]} Nd5 {[%emt 0:13:22]} 15. Qxb7 {[%emt 0:11:29]} O-O {[%emt 0:00:27]} 16. Bc1 {[%emt 0:14:48]} Rfc8 {[%emt 0:07:59]} 17. c3 {[%emt 0:19:23]} Rab8 $36 {[%emt 0:12:00][%mdl 2048] Black is pushing.} 18. Qd7 {[%emt 0:01:37]} h5 {[%emt 0:01:19] White must now prevent ...Rc7.} 19. h4 {[%emt 0:02:17]} Qa4 {[%emt 0:00:57]} 20. Qh3 {[%emt 0:04:31]} Nf4 {[%emt 0:05:57] Black is more active.} 21. Bxf4 {[%emt 0:02:18]} Qxf4 {[%emt 0:00:03]} 22. Rfe1 {[%emt 0:01:06]} (22. g3 $142 Qc7 23. Rd2) 22... e6 {[%emt 0:06:11]} ({Black should play} 22... Rd8 23. g3 Qc7) 23. Re4 {[%emt 0:00:23]} Qf6 {[%emt 0:00:54]} 24. Rb1 {[%emt 0:05:30]} Rd8 {[%emt 0:00:53][%cal Bc8d8,Bd8d7,Bd7d2][%mdl 32]} 25. Qe3 {[%emt 0:00:26]} Rd7 {[%emt 0:03:09]} 26. Ra4 {[%emt 0:01:16]} Qe5 {[%emt 0:05:10] ...Qxe3 is the strong threat.} 27. Be4 {[%emt 0:01:50] [#] Loses the game.} (27. Qf3 $17) 27... Rxb2 $3 $19 {[%emt 0:01:25][%mdl 512]} 28. Rf1 {[%emt 0:01:21]} (28. Raa1 Rbd2) 28... Qxc3 {[%emt 0:02:44]} 29. Qxc3 {[%emt 0:00:41]} Bxc3 {[%emt 0:00:04]} 30. Bxc6 {[%emt 0:00:08]} Rdd2 {[%emt 0:02:04]} 31. Rf4 $2 {[%emt 0:00:20]} (31. Kh2) 31... f5 {[%emt 0:01:11]} 32. Be8 {[%emt 0:01:08]} Kg7 {[%emt 0:00:14]} 33. Rc4 {[%emt 0:00:25]} Bd4 {[%emt 0:00:41]} 34. Rc7+ {[%emt 0:00:08]} Kh6 {[%emt 0:00:41]} 35. Re7 {[%emt 0:00:47]} Bxf2+ {[%emt 0:00:40]} 36. Kh2 {[%emt 0:00:40]} Bxh4 {[%emt 0:00:25] Black mates.} 37. Rxe6 {[%emt 0:00:19]} Rxg2+ {[%emt 0:00:12]} 38. Kh3 {[%emt 0:00:10]} Rh2# {Weighted Error Value: White=0.65/Black=0.06 (flawless)} 0-1

[Event "Summer Prague Open-A 2022"]
[Site "Prague"]
[Date "2022.08.11"]
[Round "8.11"]
[White "Mirimanian, Hayk"]
[Black "Risting, Eivind Olav"]
[Result "1-0"]
[ECO "B12"]
[WhiteElo "2228"]
[BlackElo "2325"]
[Annotator "TA"]
[PlyCount "99"]
[EventDate "2022.08.05"]
[EventType "swiss"]
[EventCountry "CZE"]
[SourceTitle "playchess.com"]
[Source "ChessBase"]
[SourceQuality "1"]
[TimeControl "40/5400+30:1800+30"]

{[%evp 10,99,8,-35,-29,-33,13,21,12,18,23,0,0,0,18,20,22,10,9,12,26,0,32,14,18,12,8,10,10,0,13,0,19,34,18,33,21,-19,-10,-36,-35,-33,0,0,0,0,0,0,0,0,29,24,72,72,80,93,77,62,59,59,67,67,73,63,93,0,138,65,68,46,54,25,70,77,62,0,0,4,35,0,0,0,121,120,491,484,495,457,4798,1912,2618,2637]} 1. e4 {[%emt 0:05:24]} c6 {[%emt 0:00:12]} 2. d4 {[%emt 0:00:26]} d5 {[%emt 0:00:10]} 3. e5 {[%emt 0:00:14]} Bf5 {[%emt 0:01:30]} 4. c4 {[%emt 0:00:25]} e6 {[%emt 0:01:24]} 5. Nc3 {[%emt 0:00:29]} Ne7 {[%emt 0:01:48]} 6. Nge2 {[%emt 0:00:32]} dxc4 {[%emt 0:15:34][%cal Oc6c5] B12: Caro-Kann: Advance Variation.} 7. Ng3 {[%emt 0:01:09]} Nd7 {[%emt 0:09:15]} (7... b5 $15 {deserves consideration.}) 8. Bxc4 $11 {[%emt 0:17:05]} Nb6 {[%emt 0:01:36] The position is equal.} 9. Bb3 {[%emt 0:00:35]} Qd7 {[%emt 0:05:00]} 10. Bg5 {[%emt 0:11:04]} Bg6 {[%emt 0:02:23]} 11. O-O {[%emt 0:05:41]} h6 {[%emt 0:05:57]} 12. Be3 {[%emt 0:03:29] [#]} Nf5 $146 {[%emt 0:03:16]} ({Predecessor:} 12... Ned5 13. a4 a5 14. Rc1 Be7 15. Qd2 O-O 16. Rfd1 Rfd8 17. Nce4 Nb4 18. Bxh6 Qe8 {1-0 (42) Kaspereit,H (2062)-Haberer,M (2114) Germany 2006}) 13. Nxf5 {[%emt 0:13:30]} Bxf5 {[%emt 0:00:18]} 14. Qe2 {[%emt 0:01:10]} Be7 {[%emt 0:07:22]} 15. Rad1 {[%emt 0:07:02]} (15. g4 $5 {[%cal Rg4f5]} Bg6 16. h3 $11) 15... h5 {[%emt 0:06:20]} 16. Qd2 {[%emt 0:12:51]} Bg6 {[%emt 0:10:53]} 17. Bg5 {[%emt 0:03:45]} Bxg5 {[%emt 0:06:17]} 18. Qxg5 {[%emt 0:00:02]} Qe7 {[%emt 0:03:26]} 19. Qc1 {[%emt 0:05:39]} h4 {[%emt 0:01:29]} 20. Bc2 {[%emt 0:02:12]} Bh5 {[%emt 0:00:23]} 21. f3 {[%emt 0:00:37]} O-O-O {[%emt 0:01:22]} 22. Ne4 {[%emt 0:00:52]} Kb8 {[%emt 0:00:41][%cal Oh4h3]} 23. Qd2 {[%emt 0:03:04]} Bg6 {[%emt 0:01:40]} 24. Nd6 {[%emt 0:00:37]} Bxc2 {[%emt 0:00:52]} 25. Qxc2 {[%emt 0:00:01]} Nc8 {[%emt 0:00:15]} 26. Ne4 {[%emt 0:00:42]} Rd5 {[%emt 0:00:47]} 27. Rd3 {[%emt 0:01:54]} Rhd8 {[%emt 0:00:34]} 28. Rfd1 {[%emt 0:00:19]} f6 {[%emt 0:02:34]} 29. f4 {[%emt 0:00:42]} Qf7 {[%emt 0:00:30]} 30. Qf2 {[%emt 0:00:34]} Qg6 {[%emt 0:01:07]} (30... fxe5 $11 31. fxe5 Qxf2+ 32. Kxf2 Nb6) 31. Nc3 $16 {[%emt 0:00:19]} R5d7 {[%emt 0:01:11]} 32. Qxh4 {[%emt 0:00:31]} Ne7 {[%emt 0:01:01][%cal Oc6c5]} 33. exf6 {[%emt 0:01:41] White is more active.} gxf6 {[%emt 0:00:15][%cal Oc6c5]} 34. Qe1 {[%emt 0:00:31]} Nf5 {[%emt 0:00:53][%cal Rf5d4]} 35. Qe4 {[%emt 0:01:12]} Qg8 {[%emt 0:04:22]} 36. Na4 {[%emt 0:00:38]} Rd5 {[%emt 0:01:21]} 37. Nc3 {[%emt 0:00:21]} ({White should try} 37. Nc5 $16) 37... R5d6 {[%emt 0:01:09] [#]} (37... R5d7 $11 {keeps the balance.}) 38. b4 {[%emt 0:00:35]} (38. d5 $1 $16 {[%cal Rd5e6]}) 38... Qe8 {[%emt 0:01:13]} 39. a4 {[%emt 0:00:10]} Qd7 $1 {[%emt 0:00:18][%cal Rd6d4]} 40. Ne2 {[%emt 0:01:36]} e5 {[%emt 0:03:05]} 41. fxe5 {[%emt 0:04:00]} fxe5 {[%emt 0:00:31]} 42. d5 {[%emt 0:21:51]} (42. Qxe5 Re8 43. Qf4 Rxe2 $17) (42. R1d2 $14) 42... cxd5 $11 {[%emt 0:01:31]} 43. Qxe5 {[%emt 0:00:36] Rxd5 is the strong threat.} Re8 {[%emt 0:01:49][%mdl 64] [#] Deflection} 44. Qf4 {[%emt 0:00:38]} Rxe2 {[%emt 0:08:16]} 45. Rxd5 $1 {[%emt 0:00:11]} Qg7 {[%emt 0:10:05]} 46. g4 $16 {[%emt 0:00:19]} Qe7 {[%emt 0:06:31][%mdl 8192] Loses the game.} 47. Rxd6 $18 {[%emt 0:05:13][%csl Gd1][%cal Rd6d8] White is clearly winning.} Re1+ {[%emt 0:00:34]} 48. Kg2 {[%emt 0:00:31][%csl Gd1][%cal Rd6d8,Bg1g2,Bg2f2,Bf2g3][%mdl 32]} ({Less strong is} 48. Rxe1 Qxe1+ 49. Kg2 Qe2+ 50. Kh3 Nxd6 $18) 48... Nh4+ {[%emt 0:02:41]} (48... Re2+ $142 49. Kf1 Nxd6) 49. Kf2 {[%emt 0:01:14][%csl Gd1][%cal Rd6d8]} Qe2+ {[%emt 0:02:10]} 50. Kg3 {[%emt 0:00:01] Weighted Error Value: White=0.16 (very precise) /Black=0.35} 1-0

[Event "Summer Prague Open-A 2022"]
[Site "Prague"]
[Date "2022.08.11"]
[Round "8.12"]
[White "Kulhanek, Tomas"]
[Black "Prilleltensky, Matan"]
[Result "1-0"]
[ECO "B23"]
[WhiteElo "2319"]
[BlackElo "2191"]
[Annotator "TA"]
[PlyCount "95"]
[EventDate "2022.08.05"]
[EventType "swiss"]
[EventCountry "CZE"]
[SourceTitle "playchess.com"]
[Source "ChessBase"]
[SourceQuality "1"]
[TimeControl "40/5400+30:1800+30"]

{[%evp 11,95,-14,-10,-33,-35,-28,0,-12,0,0,14,5,22,0,27,36,29,36,29,0,16,60,29,6,20,-30,0,0,32,27,33,7,43,39,54,40,41,43,70,65,62,81,66,62,54,75,68,66,69,10,7,6,12,38,21,18,41,41,51,41,79,79,63,52,1289,1329,1254,1175,1359,1220,984,858,999,2552,29957,29958,29960,29959,11256,6083,5193,2627,29988,29989,29989,29990]} 1. e4 {[%emt 0:00:03]} c5 {[%emt 0:00:08]} 2. Nc3 {[%emt 0:00:11]} e6 {[%emt 0:00:21]} 3. g3 {[%emt 0:00:12]} d5 {[%emt 0:00:25]} 4. d3 {[%emt 0:00:14]} Nf6 {[%emt 0:03:24]} 5. Bg2 {[%emt 0:00:41]} Be7 {[%emt 0:06:14]} 6. f4 {[%emt 0:02:12]} Nc6 {[%emt 0:03:13]} 7. e5 {[%emt 0:00:39] B24: Closed Sicilian: 3 g3 sidelines.} Ng8 {[%emt 0:01:53]} 8. Nf3 {[%emt 0:00:17]} Nh6 {[%emt 0:03:35]} 9. O-O {[%emt 0:01:19] The position is equal.} Bd7 {[%emt 0:04:33] [#]} 10. Ne2 $146 {[%emt 0:02:28]} ({Predecessor:} 10. Kh1 Nf5 11. Ne2 h5 12. d4 h4 13. g4 h3 14. gxf5 hxg2+ 15. Kxg2 cxd4 16. Nexd4 exf5 {1-0 (29) Nordquelle,D (2235)-Skaslien,I (1828) Kragero 2019}) 10... Qb6 {[%emt 0:05:44]} 11. c3 {[%emt 0:01:30]} f6 {[%emt 0:02:58]} 12. Kh1 {[%emt 0:02:44]} O-O-O {[%emt 0:01:28]} 13. d4 {[%emt 0:02:22]} fxe5 {[%emt 0:02:28]} 14. fxe5 {[%emt 0:01:21]} Nf5 {[%emt 0:03:14]} 15. g4 {[%emt 0:03:12]} Nh6 {[%emt 0:01:21]} 16. h3 $1 {[%emt 0:01:59]} Rdf8 {[%emt 0:02:26]} 17. b3 {[%emt 0:20:25][%cal Bb2b3,Bb3b4,Bb4b5][%mdl 32]} Nf7 {[%emt 0:02:08]} 18. a3 {[%emt 0:06:26]} ({White should try} 18. Be3) 18... g5 {[%emt 0:04:52]} 19. Ng3 {[%emt 0:01:16][%cal Be2g3,Bg3h5,Bh5f6][%mdl 32]} h6 {[%emt 0:07:59]} 20. b4 {[%emt 0:00:40]} c4 {[%emt 0:03:46]} 21. a4 {[%emt 0:02:01]} Qd8 {[%emt 0:01:48]} 22. Nh5 {[%emt 0:04:45]} Rhg8 {[%emt 0:01:24]} 23. b5 {[%emt 0:00:57]} Na5 {[%emt 0:00:59]} 24. Ba3 {[%emt 0:00:22]} Nb3 {[%emt 0:01:46]} 25. Bxe7 {[%emt 0:03:28]} Qxe7 {[%emt 0:00:06]} 26. Ra2 {[%emt 0:00:08]} Nh8 {[%emt 0:01:16][%cal Bf7h8,Bh8g6,Bg6f4][%mdl 32]} 27. Nf6 {[%emt 0:01:52]} Rg7 {[%emt 0:01:23]} 28. h4 {[%emt 0:07:37][%cal Bh3h4,Bh4h5][%mdl 32]} Ng6 {[%emt 0:05:15]} 29. h5 {[%emt 0:01:17]} Nf4 {[%emt 0:01:10]} 30. Nd2 {[%emt 0:02:24]} (30. Ng1 $14) 30... Nxd2 $11 {[%emt 0:08:23]} 31. Qxd2 {[%emt 0:00:13]} Rxf6 {[%emt 0:04:30]} 32. exf6 {[%emt 0:00:12]} Qxf6 {[%emt 0:00:03]} 33. Qe3 $36 {[%emt 0:05:46][%mdl 2048] White has some pressure.} Rf7 {[%emt 0:01:26]} 34. Raf2 {[%emt 0:04:12]} Kd8 {[%emt 0:03:16]} 35. Kh2 {[%emt 0:02:36][%cal Bh1h2,Bh2g3,Bg3f4][%mdl 32]} Kc7 {[%emt 0:06:07]} 36. Kg3 {[%emt 0:03:56][%cal Rf2f4]} Kd6 {[%emt 0:03:00]} 37. Qc1 {[%emt 0:11:16][%cal Rf2f4] [#] Threatens to win with Rxf4. Really sharp!} b6 $2 {[%emt 0:03:39][%mdl 8192] This move loses the game for Black.} (37... e5 $2 38. Qa3+ Kc7 39. Bxd5 $18) (37... Be8 $14) 38. Rxf4 $18 {[%emt 0:02:48]} gxf4+ {[%emt 0:00:07]} 39. Rxf4 {[%emt 0:00:16]} Qxf4+ {[%emt 0:00:37]} 40. Qxf4+ {[%emt 0:00:06]} Rxf4 {[%emt 0:00:02]} 41. Kxf4 {[%emt 0:30:07][%mdl 4096] Endgame aiming for g5. KB-KB} Ke7 {[%emt 0:03:09]} 42. g5 {[%emt 0:00:00]} hxg5+ {[%emt 0:04:24]} 43. Kxg5 {[%emt 0:00:00]} Kf7 {[%emt 0:11:16]} 44. h6 {[%emt 0:00:00]} Bc8 {[%emt 0:04:00]} 45. Bh3 {[%emt 0:00:00] White threatens Bg4 and mate.} Bd7 {[%emt 0:02:33]} 46. Bg4 {[%emt 0:00:00]} a5 {[%emt 0:02:17]} 47. bxa6 {[%emt 0:00:00]} Bxa4 {[%emt 0:00:18] [#]} 48. Bxe6+ $1 {[%emt 0:00:00][%mdl 512] Weighted Error Value: White=0.10 (very precise) /Black=0.39} 1-0

[Event "Summer Prague Open-A 2022"]
[Site "Prague"]
[Date "2022.08.11"]
[Round "8.13"]
[White "Jun, Rudolf"]
[Black "Parligras, Cosmin"]
[Result "1/2-1/2"]
[ECO "C70"]
[WhiteElo "2134"]
[BlackElo "2277"]
[Annotator "TA"]
[PlyCount "30"]
[EventDate "2022.08.05"]
[EventType "swiss"]
[EventCountry "CZE"]
[SourceTitle "playchess.com"]
[Source "ChessBase"]
[SourceQuality "1"]
[TimeControl "40/5400+30:1800+30"]

{[%evp 12,14,41,28,33]} 1. e4 {[%emt 0:00:04]} e5 {[%emt 0:00:16]} 2. Nf3 {[%emt 0:00:35]} Nc6 {[%emt 0:00:07]} 3. Bb5 {[%emt 0:00:53]} a6 {[%emt 0:00:22]} 4. Ba4 {[%emt 0:00:26]} g6 {[%emt 0:00:16]} 5. O-O {[%emt 0:01:09]} Bg7 {[%emt 0:00:10]} 6. c3 {[%emt 0:00:14]} d6 {[%emt 0:00:28]} 7. h3 {[%emt 0:01:38]} Nge7 {[%emt 0:06:35] [#] An uneventful encounter. C60: Ruy Lopez: Unusual Black 3rd moves and 3...g6.} {Predecessor:} 8. d4 $146 O-O 9. dxe5 dxe5 10. Qe2 Be6 11. Rd1 Qc8 12. Be3 h6 13. Nbd2 b6 14. Bb3 f5 15. Bxe6+ Qxe6 {½-½ (38) Babazada,K (2409)-McShane,L (2674) Tornelo INT 2021} 1/2-1/2

[Event "Summer Prague Open-A 2022"]
[Site "Prague"]
[Date "2022.08.11"]
[Round "8.14"]
[White "Pozzari, Simone"]
[Black "Kvaloy, Aksel Bu"]
[Result "1/2-1/2"]
[ECO "C88"]
[WhiteElo "2136"]
[BlackElo "2289"]
[Annotator "TA"]
[PlyCount "120"]
[EventDate "2022.08.05"]
[EventType "swiss"]
[EventCountry "CZE"]
[SourceTitle "playchess.com"]
[Source "ChessBase"]
[SourceQuality "1"]
[TimeControl "40/5400+30:1800+30"]

{[%evp 25,120,19,16,16,16,16,7,13,13,7,13,14,16,9,4,7,17,19,36,10,30,0,8,6,7,-17,-17,-39,29,31,27,33,30,38,27,29,41,29,42,19,29,10,41,0,0,0,0,-8,-8,-8,-8,-8,-8,-8,-8,-8,-8,-15,-15,-8,-8,-17,-17,-18,-15,-23,-14,-14,-15,-22,0,0,0,0,0,0,0,0,0,0,0,0,0,0,0,0,0,0,0,0,0,0,0,0,0,0,0]} 1. e4 {[%emt 0:00:03]} e5 {[%emt 0:00:13]} 2. Nf3 {[%emt 0:00:07]} Nc6 {[%emt 0:00:12]} 3. Bb5 {[%emt 0:00:06]} a6 {[%emt 0:00:21]} 4. Ba4 {[%emt 0:00:07]} Nf6 {[%emt 0:00:04]} 5. O-O {[%emt 0:00:09]} Be7 {[%emt 0:00:07]} 6. Re1 {[%emt 0:00:05]} b5 {[%emt 0:00:18]} 7. Bb3 {[%emt 0:00:06]} O-O {[%emt 0:00:10]} 8. a4 {[%emt 0:00:08]} Bb7 {[%emt 0:00:48]} 9. d3 {[%emt 0:00:07]} d6 {[%emt 0:00:28]} 10. Nbd2 {[%emt 0:00:08]} Nd7 {[%emt 0:01:15]} 11. c3 {[%emt 0:00:07]} Nc5 {[%emt 0:00:39]} 12. axb5 {[%emt 0:00:06]} axb5 {[%emt 0:00:13]} 13. Rxa8 {[%emt 0:00:07]} Qxa8 {[%emt 0:00:21]} 14. Bc2 {[%emt 0:00:06] C88: Closed Ruy Lopez: Anti-Marshall Systems.} b4 $1 {[%emt 0:00:41] 14...b4 scores better than 14...Bf6.} 15. d4 {[%emt 0:01:37]} bxc3 {[%emt 0:01:35]} 16. bxc3 {[%emt 0:00:29]} Nd7 {[%emt 0:00:15]} 17. Nf1 {[%emt 0:08:13]} Qa1 {[%emt 0:00:09]} 18. Bd2 {[%emt 0:01:53]} Qxd1 {[%emt 0:01:24]} 19. Rxd1 {[%emt 0:00:12]} Ra8 {[%emt 0:00:08]} 20. Rb1 {[%emt 0:00:45] [#]} Na5 $146 {[%emt 0:17:00]} ({Predecessor:} 20... Bc8 21. Bd3 Bf6 22. Be3 h6 23. h3 Ra3 24. Bb5 Ncb8 25. Bd2 Nb6 26. Ne3 Be6 {0-1 (51) Garifullina,L (2214)-Sargissian,G (2596) Riga 2021}) 21. Ne3 {[%emt 0:18:33]} g6 {[%emt 0:18:23]} 22. h3 {[%emt 0:08:53]} Bf6 {[%emt 0:12:39]} 23. d5 {[%emt 0:08:40] Threatens to win with c4.} Ba6 {[%emt 0:12:19] Against c4} 24. Ra1 {[%emt 0:21:50]} Nb7 {[%emt 0:02:01]} 25. Bd3 {[%emt 0:04:46]} Nbc5 {[%emt 0:01:15]} 26. Bxa6 {[%emt 0:02:25][%cal Oe3c2]} Nxa6 {[%emt 0:00:34]} ({Better is} 26... Nb8 $15) 27. Nc2 $11 {[%emt 0:01:01]} Nb6 $1 {[%emt 0:04:11]} 28. Be3 $36 {[%emt 0:02:24][%mdl 2048] White fights for an advantage.} Nb8 {[%emt 0:00:43]} 29. Rxa8 {[%emt 0:02:42]} Nxa8 {[%emt 0:00:04]} 30. Nb4 {[%emt 0:00:32]} Kf8 {[%emt 0:05:54]} 31. Nd2 {[%emt 0:02:22]} Ke8 {[%emt 0:01:20]} 32. c4 {[%emt 0:00:52]} Be7 {[%emt 0:04:11]} 33. Nb3 {[%emt 0:13:23]} Kd7 {[%emt 0:03:38]} 34. c5 {[%emt 0:02:11] Black must now prevent c6+.} (34. Na5 $5 {[%cal Re3a7]}) 34... c6 {[%emt 0:05:55][%cal Bc7c6,Bc6d5][%mdl 32]} 35. Na5 {[%emt 0:01:06][%cal Rd5c6]} cxd5 {[%emt 0:01:02]} ({Don't do} 35... dxc5 36. Nbxc6 (36. dxc6+ Ke6 $11) 36... Nxc6 37. Nxc6 $16) 36. c6+ {[%emt 0:00:08] [#]} Nxc6 $1 {[%emt 0:00:27]} 37. Naxc6 {[%emt 0:00:23]} dxe4 {[%emt 0:00:24]} 38. Nxe7 {[%emt 0:01:22]} Kxe7 {[%emt 0:00:06]} 39. f3 {[%emt 0:00:46]} exf3 {[%emt 0:00:45]} 40. gxf3 {[%emt 0:00:05]} Nc7 {[%emt 0:04:00]} 41. Bb6 {[%emt 0:31:07]} Nb5 {[%emt 0:32:56][%mdl 1024] Black has compensation.} 42. Kf2 {[%emt 0:00:00]} Ke6 {[%emt 0:00:00]} 43. Nd3 {[%emt 0:00:00]} Nc3 {[%emt 0:00:00]} 44. Ba5 {[%emt 0:00:00]} Nd5 {[%emt 0:00:00]} 45. Bd8 {[%emt 0:00:00]} Kf5 {[%emt 0:00:00]} 46. Kg3 {[%emt 0:00:00] The position is equal.} h6 {[%emt 0:00:00]} 47. Nf2 {[%emt 0:00:00]} Nf6 {[%emt 0:00:00]} 48. Bxf6 {[%emt 0:00:00]} Kxf6 {[%emt 0:00:00][%mdl 4096] Endgame KN-KP} 49. Ng4+ {[%emt 0:00:00]} Kg7 {[%emt 0:00:00]} 50. Ne3 {[%emt 0:00:00]} Kf8 {[%emt 0:00:00]} 51. Nd5 {[%emt 0:00:00]} f5 {[%emt 0:00:00]} 52. Kf2 {[%emt 0:00:00]} Kf7 {[%emt 0:00:36]} 53. Ke3 {[%emt 0:00:00]} g5 {[%emt 0:01:36]} 54. Kd3 {[%emt 0:00:00]} h5 {[%emt 0:01:44]} 55. Ke3 {[%emt 0:00:00]} h4 {[%emt 0:02:50]} 56. Nc7 {[%emt 0:00:00]} Ke7 {[%emt 0:01:24]} 57. Nd5+ {[%emt 0:00:00]} Kd7 {[%emt 0:00:45]} 58. Kf2 {[%emt 0:00:00]} Ke6 {[%emt 0:00:36]} 59. Nc7+ {[%emt 0:00:00]} Kd7 {[%emt 0:00:25]} 60. Nd5 {[%emt 0:00:00]} Ke6 {[%emt 0:00:02] Weighted Error Value: White=0.06 (flawless) /Black=0.07 (flawless)} 1/2-1/2